[Event "NOR-ch Clubs 2017"]
[Site "Kristiansund"]
[Date "2017.10.22"]
[Round "5"]
[White "Isachsen, Harald"]
[Black "Svensen, Tarjei"]
[Result "0-1"]
[ECO "C00"]
[WhiteElo "1701"]
[BlackElo "2057"]
[Annotator "NA"]
[PlyCount "71"]
[EventDate "2017.??.??"]
[EventType "team-tourn"]
[EventCountry "NOR"]
[SourceTitle "playchess.com"]
[Source "ChessBase"]
[SourceQuality "1"]
[TimeControl "40/5400:1800"]

1. e4 {[%emt 0:02:27]} e6 {[%emt 0:00:12]} 2. Nf3 {[%emt 0:01:23]} d5 {[%emt 0:00:07]} 3. exd5 {[%emt 0:00:59]} exd5 {[%emt 0:00:02]} 4. d4 {[%emt 0:01:29]} Bg4 {[%emt 0:03:11]} 5. Be2 {[%emt 0:00:49]} Bd6 {[%emt 0:00:48] LiveBook: 26 Games} 6. Bg5 {[%emt 0:17:56] C01: French: Exchange Variation} (6. h3 Bh5 7. O-O Ne7 8. Nbd2 O-O 9. c3 Nbc6 10. Ne5 Bxe2 11. Qxe2 Re8 12. Nxc6 Nxc6 13. Qd3 a6 {1-0 (48) Jakovenko,D (2662)-Kiriakov,P (2555) playchess.com INT 2006}) 6... Ne7 {[%emt 0:01:26]} 7. Bh4 {[%emt 0:00:00]} Nbc6 {[%emt 0:00:00]} 8. Bg3 {[%emt 0:04:21]} O-O $146 {[%emt 0:01:49]} ({Predecessor:} 8... Nf5 9. Bxd6 Qxd6 10. c3 O-O-O 11. O-O Rde8 12. h3 h5 13. Re1 {½-½ (38) Fargere,F (2367)-Iotov,V (2531) Mulhouse 2008}) 9. c3 {[%emt 0:00:00]} Re8 {[%emt 0:17:08]} 10. O-O {[%emt 0:02:00]} Ng6 {[%emt 0:00:35]} 11. Nbd2 {[%emt 0:07:24]} Bf4 {[%emt 0:03:25]} 12. Re1 {[%emt 0:01:47]} Qf6 {[%emt 0:02:16]} 13. Qc2 {[%emt 0:01:33]} Re7 {[%emt 0:09:53]} 14. Bd3 {[%emt 0:03:04]} Rae8 {[%emt 0:01:42]} 15. Rxe7 {[%emt 0:01:25]} Rxe7 {[%emt 0:00:17]} 16. Re1 {[%emt 0:06:44]} Rxe1+ {[%emt 0:03:02]} 17. Nxe1 {[%emt 0:02:48]} Nce7 {[%emt 0:01:52]} 18. Nef3 {[%emt 0:08:25]} c6 {[%emt 0:03:33]} 19. Qb1 {[%emt 0:01:22]} h5 {[%emt 0:07:06]} 20. Qe1 {[%emt 0:05:49]} h4 {[%emt 0:00:50]} 21. Bxf4 {[%emt 0:01:21]} Nxf4 {[%emt 0:00:22]} 22. Ne5 $11 {[%emt 0:03:29]} Qg5 {[%emt 0:04:31]} 23. Qe3 {[%emt 0:05:06]} Nf5 {[%emt 0:13:05]} 24. Bxf5 {[%emt 0:01:01]} Qxf5 {[%emt 0:01:28]} 25. Nxg4 {[%emt 0:02:47]} Qxg4 {[%emt 0:00:07]} 26. Qf3 {[%emt 0:00:49]} Qg5 {[%emt 0:00:40]} 27. Nf1 {[%emt 0:00:22]} g6 {[%emt 0:03:50]} 28. Ne3 {[%emt 0:00:17]} Kg7 {[%emt 0:00:18]} 29. Qg4 {[%emt 0:00:58]} Qxg4 {[%emt 0:01:17]} 30. Nxg4 {[%emt 0:00:04]} Nd3 {[%emt 0:00:04]} 31. b3 {[%emt 0:01:33]} Nc1 {[%emt 0:00:07]} 32. Ne3 {[%emt 0:00:06]} Ne2+ {[%emt 0:00:32]} 33. Kf1 {[%emt 0:00:05]} Nxc3 {[%emt 0:00:03]} 34. Nc2 {[%emt 0:00:14]} Nxa2 {[%emt 0:00:19]} 35. Ke2 {[%emt 0:00:02]} Nc3+ {[%emt 0:00:16]} 36. Kd3 {[%emt 0:00:00]} 0-1

[Event "NOR-ch Clubs 2017"]
[Site "Kristiansund"]
[Date "2017.10.22"]
[Round "5"]
[White "Hestholm, Gustav"]
[Black "Simensen, Vegard"]
[Result "0-1"]
[ECO "B22"]
[WhiteElo "1487"]
[BlackElo "1969"]
[Annotator "NA"]
[PlyCount "104"]
[EventDate "2017.??.??"]
[EventType "team-tourn"]
[EventCountry "NOR"]
[SourceTitle "playchess.com"]
[Source "ChessBase"]
[SourceQuality "1"]
[TimeControl "40/5400:1800"]

1. e4 {[%emt 0:00:04]} c5 {[%emt 0:00:34]} 2. c3 {[%emt 0:00:14]} d5 {[%emt 0:02:26]} 3. exd5 {[%emt 0:01:30]} Nf6 {[%emt 0:02:11]} 4. Bb5+ {[%emt 0:02:26]} Nbd7 {[%emt 0:02:39]} 5. Nf3 {[%emt 0:01:39]} Nxd5 {[%emt 0:08:08]} 6. d4 {[%emt 0:00:33]} e6 {[%emt 0:02:20]} 7. O-O {[%emt 0:00:58]} Bd6 {[%emt 0:04:42]} 8. Bg5 {[%emt 0:04:17]} Qb6 {[%emt 0:08:24]} (8... f6 $11 9. c4 Nc7 10. dxc5 Bxc5) 9. Bxd7+ {[%emt 0:03:38]} (9. c4 $16) 9... Bxd7 {[%emt 0:03:02]} 10. Qc2 {[%emt 0:01:41]} (10. Nbd2 $14) 10... cxd4 {[%emt 0:05:06]} 11. Nxd4 {[%emt 0:05:53]} O-O {[%emt 0:04:02]} 12. Nd2 {[%emt 0:02:49]} Rac8 $17 {[%emt 0:02:34]} 13. N2b3 {[%emt 0:03:26]} Bb8 {[%emt 0:07:20]} 14. Bh4 {[%emt 0:03:27]} e5 {[%emt 0:07:10]} 15. Nf3 {[%emt 0:01:16]} f6 {[%emt 0:03:34]} 16. Rad1 {[%emt 0:05:23]} Bc6 {[%emt 0:03:58]} 17. Qf5 {[%emt 0:02:45]} Rce8 {[%emt 0:02:00]} 18. Bg3 {[%emt 0:02:07]} Kh8 {[%emt 0:02:59]} 19. h4 {[%emt 0:01:32]} Ne7 {[%emt 0:01:15]} 20. Qh3 {[%emt 0:01:45]} Be4 {[%emt 0:01:43]} 21. Rd2 {[%emt 0:05:45]} Bf5 {[%emt 0:00:49]} 22. Qh2 {[%emt 0:00:36]} Bg4 {[%emt 0:01:30]} 23. h5 {[%emt 0:01:08]} Nf5 {[%emt 0:01:35]} 24. Kh1 {[%emt 0:02:16]} Qa6 {[%emt 0:02:43]} 25. Ra1 {[%emt 0:01:37]} Nxg3+ {[%emt 0:01:20]} 26. fxg3 {[%emt 0:00:21]} Rd8 {[%emt 0:01:16]} 27. h6 {[%emt 0:02:05]} g6 {[%emt 0:01:13]} 28. Qh4 {[%emt 0:07:52]} Bxf3 {[%emt 0:00:32]} 29. gxf3 {[%emt 0:00:57]} Rxd2 {[%emt 0:00:05]} 30. Nxd2 {[%emt 0:00:08]} Qe2 {[%emt 0:00:57]} 31. Qb4 {[%emt 0:00:36]} Rf7 {[%emt 0:01:11]} 32. Qc4 {[%emt 0:00:41]} Qxc4 {[%emt 0:00:02]} 33. Nxc4 {[%emt 0:00:10]} Rd7 {[%emt 0:00:04]} 34. Ne3 {[%emt 0:00:47]} Kg8 {[%emt 0:00:25]} 35. Rd1 {[%emt 0:00:14]} Rxd1+ {[%emt 0:00:05]} 36. Nxd1 {[%emt 0:00:02]} Kf7 {[%emt 0:00:01]} 37. Ne3 {[%emt 0:01:30]} Ke6 {[%emt 0:00:01]} 38. Kg2 {[%emt 0:01:30]} b6 {[%emt 0:00:01]} 39. Kf2 {[%emt 0:01:47]} Bc7 {[%emt 0:00:00]} 40. Ke2 {[%emt 0:04:21]} Bd8 {[%emt 0:30:01]} 41. Kf2 {[%emt 0:32:53]} Be7 {[%emt 0:00:00]} 42. g4 {[%emt 0:00:00]} f5 {[%emt 0:00:00]} 43. gxf5+ {[%emt 0:00:00]} gxf5 {[%emt 0:00:00]} 44. Ng2 {[%emt 0:00:00]} Bg5 {[%emt 0:00:00]} 45. Kg3 {[%emt 0:00:00]} Bxh6 {[%emt 0:00:00]} 46. Nh4 {[%emt 0:00:00]} Bd2 {[%emt 0:00:00]} 47. Kf2 {[%emt 0:00:00]} Bg5 {[%emt 0:00:00]} 48. Ng2 {[%emt 0:00:00]} Kd5 {[%emt 0:00:00]} 49. b3 {[%emt 0:00:00]} h5 {[%emt 0:00:00]} 50. Ke2 {[%emt 0:00:00]} h4 {[%emt 0:00:00]} 51. Kf2 {[%emt 0:00:00]} h3 {[%emt 0:00:00]} 52. Ne1 {[%emt 0:00:00]} Bh4+ {[%emt 0:00:00]} 0-1

[Event "NOR-ch Clubs 2017"]
[Site "Kristiansund"]
[Date "2017.10.22"]
[Round "5"]
[White "Refsnes, Stale"]
[Black "Seglem, Ole Andre"]
[Result "1-0"]
[ECO "C02"]
[WhiteElo "1444"]
[BlackElo "1494"]
[Annotator "NA"]
[PlyCount "107"]
[EventDate "2017.??.??"]
[EventType "team-tourn"]
[EventCountry "NOR"]
[SourceTitle "playchess.com"]
[Source "ChessBase"]
[SourceQuality "1"]
[TimeControl "40/5400:1800"]

1. e4 {[%emt 0:08:34]} d5 {[%emt 0:00:07]} 2. e5 {[%emt 0:00:20]} e6 {[%emt 0:02:46]} 3. d4 {[%emt 0:00:39]} c5 {[%emt 0:00:06]} 4. c3 {[%emt 0:00:20]} Ne7 {[%emt 0:01:03]} 5. Bg5 {[%emt 0:02:30]} h6 {[%emt 0:00:40]} 6. Bd2 {[%emt 0:01:17]} Nbc6 {[%emt 0:00:44]} 7. Nf3 {[%emt 0:00:56]} Qb6 {[%emt 0:00:59]} 8. Qb3 {[%emt 0:02:02]} Qxb3 {[%emt 0:02:39]} 9. axb3 {[%emt 0:00:06]} cxd4 {[%emt 0:02:53]} 10. cxd4 {[%emt 0:00:26]} Nf5 {[%emt 0:00:11]} 11. Bc3 {[%emt 0:00:37]} Bb4 {[%emt 0:00:59]} 12. Nbd2 {[%emt 0:00:47]} O-O {[%emt 0:02:26]} 13. Bd3 {[%emt 0:01:08]} Nfe7 {[%emt 0:00:41]} 14. O-O {[%emt 0:00:41]} Bd7 {[%emt 0:00:38]} 15. Ra2 {[%emt 0:01:54]} Nc8 {[%emt 0:02:04]} 16. Rfa1 {[%emt 0:01:10]} a6 {[%emt 0:02:24]} 17. Ra4 {[%emt 0:01:06]} Bxc3 {[%emt 0:01:47]} 18. bxc3 {[%emt 0:00:33]} Nxe5 {[%emt 0:00:15]} 19. Nxe5 {[%emt 0:00:12]} Bxa4 {[%emt 0:00:02]} 20. Rxa4 {[%emt 0:00:45]} Ne7 {[%emt 0:01:48]} 21. c4 {[%emt 0:08:17]} Rfd8 {[%emt 0:05:34]} 22. c5 {[%emt 0:01:03]} Rac8 {[%emt 0:05:57]} 23. Kf1 {[%emt 0:06:33]} Nc6 {[%emt 0:02:13]} 24. f4 {[%emt 0:02:31]} f6 {[%emt 0:01:04]} 25. Nxc6 {[%emt 0:01:30]} Rxc6 {[%emt 0:00:02]} 26. Rb4 {[%emt 0:00:51]} Rd7 {[%emt 0:01:55]} 27. Nf3 {[%emt 0:06:58]} Kf7 {[%emt 0:01:28]} 28. h4 {[%emt 0:00:38]} h5 {[%emt 0:03:35]} 29. Ra4 {[%emt 0:03:30]} Rd8 {[%emt 0:04:01]} 30. Ke2 {[%emt 0:02:32]} Ke7 {[%emt 0:01:34]} 31. Ke3 {[%emt 0:01:35]} Rb8 {[%emt 0:05:23]} 32. Nd2 {[%emt 0:02:46]} Rg8 {[%emt 0:06:46]} 33. Bg6 {[%emt 0:00:12]} Rh8 {[%emt 0:02:29]} 34. Rb4 {[%emt 0:00:06]} Rc7 {[%emt 0:00:08]} 35. Nf3 {[%emt 0:00:41]} Rh6 {[%emt 0:02:12]} 36. Bd3 {[%emt 0:00:11]} Rh8 {[%emt 0:01:03]} 37. Rb6 {[%emt 0:00:06]} a5 {[%emt 0:02:04]} 38. f5 {[%emt 0:00:07]} e5 {[%emt 0:01:25]} 39. Re6+ {[%emt 0:00:09]} Kd7 {[%emt 0:01:00]} 40. dxe5 {[%emt 0:02:18]} Rxc5 {[%emt 0:30:38]} 41. exf6 {[%emt 0:30:08]} gxf6 42. Rb6 {[%emt 0:00:38]} Kc7 {[%emt 0:01:24]} 43. Rxf6 {[%emt 0:00:11]} Rc3 {[%emt 0:00:20]} 44. Nd4 {[%emt 0:01:01]} Re8+ {[%emt 0:01:48]} 45. Kd2 {[%emt 0:00:14]} Rc5 {[%emt 0:01:04]} 46. Ne6+ {[%emt 0:00:10]} Kd6 {[%emt 0:00:28]} 47. Nxc5+ {[%emt 0:00:37]} Kxc5 {[%emt 0:00:08]} 48. Rf7 {[%emt 0:01:40]} Rg8 {[%emt 0:00:22]} 49. Bf1 {[%emt 0:00:14]} Rg4 {[%emt 0:00:14]} 50. Rxb7 {[%emt 0:00:33]} Rf4 {[%emt 0:00:34]} 51. Be2 {[%emt 0:03:52]} Rxf5 {[%emt 0:00:25]} 52. Rb5+ {[%emt 0:00:09]} Kd4 {[%emt 0:00:24]} 53. Bf3 {[%emt 0:00:31]} a4 {[%emt 0:00:53]} 54. Rb4+ {[%emt 0:00:11]} 1-0

[Event "NOR-ch Clubs 2017"]
[Site "Kristiansund"]
[Date "2017.10.22"]
[Round "5"]
[White "Welle, Sindre"]
[Black "Flatebo, Hallvard Haug"]
[Result "0-1"]
[ECO "A80"]
[WhiteElo "1441"]
[BlackElo "1531"]
[Annotator "NA"]
[PlyCount "77"]
[EventDate "2017.??.??"]
[EventType "team-tourn"]
[EventCountry "NOR"]
[SourceTitle "playchess.com"]
[Source "ChessBase"]
[SourceQuality "1"]
[TimeControl "40/5400:1800"]

1. d4 {[%emt 0:00:02]} f5 {[%emt 0:00:05]} 2. Nf3 {[%emt 0:00:30]} Nf6 {[%emt 0:00:07]} 3. e3 {[%emt 0:00:44]} g6 {[%emt 0:00:07]} 4. Bc4 {[%emt 0:00:52]} e6 {[%emt 0:00:31]} 5. O-O {[%emt 0:01:09]} Bg7 {[%emt 0:00:09]} 6. Nc3 {[%emt 0:02:19]} O-O {[%emt 0:01:27]} 7. d5 {[%emt 0:01:13]} Qe7 {[%emt 0:02:08]} 8. dxe6 {[%emt 0:01:09]} dxe6 {[%emt 0:00:02]} 9. Qe2 {[%emt 0:01:05]} Kh8 {[%emt 0:06:57]} 10. e4 {[%emt 0:01:15]} Nc6 {[%emt 0:07:39]} 11. Re1 {[%emt 0:01:40]} fxe4 {[%emt 0:05:17]} 12. Nxe4 {[%emt 0:00:25]} Nxe4 {[%emt 0:01:22]} 13. Qxe4 {[%emt 0:00:07]} e5 {[%emt 0:01:11]} 14. Bg5 {[%emt 0:10:25]} Qe8 {[%emt 0:00:17]} 15. Qe3 {[%emt 0:01:41]} Bf5 {[%emt 0:02:01]} 16. c3 {[%emt 0:00:37]} a6 {[%emt 0:02:01]} 17. Rad1 {[%emt 0:01:53]} Be6 {[%emt 0:02:34]} 18. Bxe6 {[%emt 0:01:46]} Qxe6 {[%emt 0:00:01]} 19. Bh6 {[%emt 0:00:19]} Rae8 {[%emt 0:02:29]} 20. Bxg7+ Kxg7 21. h4 {[%emt 0:01:45]} h6 {[%emt 0:06:15]} 22. h5 {[%emt 0:01:32]} g5 {[%emt 0:01:12]} 23. g3 {[%emt 0:04:45]} Qg4 {[%emt 0:04:57]} 24. Kg2 {[%emt 0:02:08]} Qxh5 {[%emt 0:03:59]} 25. Rd7+ {[%emt 0:00:49]} Rf7 {[%emt 0:00:13]} 26. Red1 {[%emt 0:00:33]} Ree7 {[%emt 0:01:01]} 27. R7d2 {[%emt 0:01:37]} Qg6 {[%emt 0:05:38]} 28. g4 {[%emt 0:01:59]} Rf4 {[%emt 0:02:50]} 29. Nh2 {[%emt 0:00:42]} Qe6 {[%emt 0:01:46]} 30. f3 {[%emt 0:01:15]} e4 {[%emt 0:00:57]} 31. fxe4 {[%emt 0:01:24]} Rxe4 {[%emt 0:00:15]} 32. Qg3 {[%emt 0:01:16]} Re3 {[%emt 0:02:17]} 33. Nf3 {[%emt 0:01:47]} Ne5 {[%emt 0:01:27]} 34. Rf1 {[%emt 0:02:14]} Qxg4 {[%emt 0:01:08]} 35. Qxg4 {[%emt 0:00:17]} Nxg4 {[%emt 0:00:17]} 36. Nd4 {[%emt 0:00:25]} Kg6 {[%emt 0:01:19]} 37. Kg1 {[%emt 0:01:19]} Rg3+ {[%emt 0:01:30]} 38. Rg2 {[%emt 0:00:30]} Rxg2+ {[%emt 0:00:03]} 39. Kxg2 {Kf6} 0-1

[Event "NOR-ch Clubs 2017"]
[Site "Kristiansund"]
[Date "2017.10.22"]
[Round "5"]
[White "Jacobsen, Fredrik Lytomt"]
[Black "Lobersli, Henrik Oie"]
[Result "0-1"]
[ECO "A45"]
[WhiteElo "1413"]
[BlackElo "2047"]
[Annotator "NA"]
[PlyCount "108"]
[EventDate "2017.??.??"]
[EventType "team-tourn"]
[EventCountry "NOR"]
[SourceTitle "playchess.com"]
[Source "ChessBase"]
[SourceQuality "1"]
[TimeControl "40/5400:1800"]

1. d4 {[%emt 0:00:02]} Nf6 {[%emt 0:01:43]} 2. Nc3 {[%emt 0:00:11]} d5 {[%emt 0:00:33]} 3. Bf4 {[%emt 0:00:18]} c5 {[%emt 0:00:59]} 4. e3 {[%emt 0:00:38]} cxd4 {[%emt 0:01:12]} 5. exd4 {[%emt 0:00:05]} a6 {[%emt 0:00:40] B13: Caro-Kann: Exchange Variation and Panov-Botvinnik Attack} 6. Bd3 {[%emt 0:01:42] LiveBook: 22 Games} (6. Nf3 Nc6 7. Ne5 Bf5 8. g4 Nxe5 9. gxf5 Nc6 10. Qd3 g6 11. O-O-O Bg7 12. h4 Nb4 13. Qe2 gxf5 {1-0 (38) Aronian,L (2799)-Le,Q (2739) Saint Louis 2017}) 6... Nc6 {[%emt 0:01:07]} 7. Nge2 {[%emt 0:01:28]} Bg4 {[%emt 0:01:44]} 8. Qd2 {[%emt 0:01:44]} e6 {[%emt 0:02:53]} 9. O-O $146 {[%emt 0:05:01]} ({Predecessor:} 9. a3 Bd6 10. f3 Bh5 11. Bxd6 Qxd6 12. Na4 Nd7 13. b4 {0-1 (45) Jozefek,M (2198)-Bagi,M (2456) Slovakia 2017}) 9... Bh5 {[%emt 0:07:46]} 10. a3 {[%emt 0:04:13]} Bd6 {[%emt 0:01:11]} 11. Rfe1 {[%emt 0:08:22]} O-O {[%emt 0:01:25]} 12. h3 {[%emt 0:06:01]} b5 {[%emt 0:04:22]} 13. Qe3 {[%emt 0:08:54]} Bg6 {[%emt 0:02:22]} 14. Bxg6 {[%emt 0:02:20]} hxg6 {[%emt 0:00:07]} 15. Bxd6 {[%emt 0:08:53]} Qxd6 {[%emt 0:00:08]} 16. Nf4 {[%emt 0:04:17]} Na5 {[%emt 0:03:58]} 17. b3 {[%emt 0:02:12]} Rfc8 {[%emt 0:01:26]} 18. Rec1 {[%emt 0:02:22]} Rc7 {[%emt 0:01:18]} 19. Nce2 {[%emt 0:02:14]} Rac8 {[%emt 0:02:20]} 20. Ra2 {[%emt 0:01:32]} Ne4 {[%emt 0:03:46]} 21. b4 {[%emt 0:04:26]} Nc3 {[%emt 0:12:18]} 22. Raa1 {[%emt 0:02:07]} Nxe2+ {[%emt 0:00:39]} 23. Nxe2 {[%emt 0:00:05]} Nc4 {[%emt 0:01:02]} 24. Qd3 {[%emt 0:01:20]} Nb6 {[%emt 0:01:55]} 25. c3 {[%emt 0:01:32]} Na4 {[%emt 0:03:31]} 26. Ra2 {[%emt 0:01:14]} Qe7 {[%emt 0:01:43]} 27. Rac2 {[%emt 0:01:19]} Qf6 {[%emt 0:00:47]} 28. Qe3 {[%emt 0:02:04]} Nb6 {[%emt 0:07:54]} 29. Nf4 {[%emt 0:01:39]} Qf5 $15 {[%emt 0:05:29]} 30. Ne2 {[%emt 0:01:40]} Nc4 {[%emt 0:02:42]} 31. Qg3 {[%emt 0:00:03]} Rc6 {[%emt 0:04:20]} 32. Ra2 {[%emt 0:01:22]} Qe4 {[%emt 0:02:17]} 33. Qf4 {[%emt 0:00:54]} Qxf4 {[%emt 0:00:51]} 34. Nxf4 {[%emt 0:00:05]} Nb6 {[%emt 0:00:16]} 35. Ne2 {[%emt 0:00:51]} Na4 {[%emt 0:00:23]} 36. Rac2 {[%emt 0:00:07]} g5 {[%emt 0:00:28]} 37. Kh2 {[%emt 0:00:22]} f6 {[%emt 0:00:24]} 38. f4 {[%emt 0:01:45]} gxf4 {[%emt 0:00:23]} 39. Nxf4 {[%emt 0:00:03]} Kf7 {[%emt 0:00:41]} 40. Ne2 {[%emt 0:00:24]} e5 {[%emt 0:30:18]} 41. dxe5 {[%emt 0:30:31]} fxe5 {[%emt 0:00:13]} 42. Kg3 {[%emt 0:00:57]} d4 {[%emt 0:00:00]} 43. Kf3 {[%emt 0:00:00]} d3 {[%emt 0:00:00]} 44. Rd2 {[%emt 0:00:00]} dxe2 {[%emt 0:00:00]} 45. Kxe2 {[%emt 0:00:00]} Ke6 {[%emt 0:00:00]} 46. Re1 {[%emt 0:00:00]} Nxc3+ {[%emt 0:00:00]} 47. Kf1 {[%emt 0:00:00]} Rd6 {[%emt 0:00:00]} 48. Rc2 {[%emt 0:00:00]} Rc4 {[%emt 0:00:00]} 49. Rec1 {[%emt 0:00:00]} Rd3 {[%emt 0:00:00]} 50. Ke1 {[%emt 0:00:00]} e4 {[%emt 0:00:00]} 51. g4 {[%emt 0:00:00]} Rxh3 {[%emt 0:00:00]} 52. g5 {[%emt 0:00:00]} e3 {[%emt 0:00:00]} 53. Rxc3 {[%emt 0:00:00]} Rh1+ {[%emt 0:00:00]} 54. Ke2 {[%emt 0:00:00]} Rxc1 {[%emt 0:00:00]} 0-1

[Event "NOR-ch Clubs 2017"]
[Site "Kristiansund"]
[Date "2017.10.22"]
[Round "6"]
[White "Risting, Eivind Olav"]
[Black "Darnell, Anton"]
[Result "1/2-1/2"]
[ECO "A05"]
[WhiteElo "2335"]
[BlackElo "2078"]
[Annotator "ChessBase"]
[PlyCount "101"]
[EventDate "2017.??.??"]
[EventType "team-tourn"]
[EventCountry "NOR"]
[SourceTitle "playchess.com"]
[Source "ChessBase"]
[SourceQuality "1"]
[TimeControl "40/5400:1800"]

1. Nf3 {[%emt 0:02:28]} Nf6 {[%emt 0:00:56]} 2. g3 {[%emt 0:01:53]} d5 {[%emt 0:00:14]} 3. Bg2 {[%emt 0:00:07]} e6 {[%emt 0:02:01]} 4. c4 {[%emt 0:00:35]} Be7 {[%emt 0:00:48]} 5. d4 {[%emt 0:01:16]} O-O {[%emt 0:00:34]} 6. Qc2 {[%emt 0:00:05]} c5 {[%emt 0:02:04]} 7. O-O {[%emt 0:01:05]} Nc6 {[%emt 0:13:45]} 8. dxc5 {[%emt 0:03:23]} Qa5 {[%emt 0:07:32]} 9. cxd5 {[%emt 0:05:33]} exd5 {[%emt 0:06:15]} 10. Bg5 {[%emt 0:09:00]} Nb4 {[%emt 0:03:53]} 11. Qc1 {[%emt 0:03:44]} h6 {[%emt 0:08:52]} 12. Be3 {[%emt 0:12:19]} Ne4 {[%emt 0:04:21]} 13. Nbd2 {[%emt 0:03:19]} Bxc5 {[%emt 0:05:43]} 14. Bxc5 {[%emt 0:08:23]} Qxc5 {[%emt 0:00:02]} 15. Nxe4 {[%emt 0:00:18]} Qxc1 {[%emt 0:00:06]} 16. Nf6+ {[%emt 0:01:29]} gxf6 {[%emt 0:00:02]} 17. Rfxc1 {[%emt 0:00:09]} Be6 {[%emt 0:00:43]} 18. Nd4 {[%emt 0:00:55]} Rac8 {[%emt 0:00:27]} 19. a3 {[%emt 0:00:42]} Nc6 {[%emt 0:03:57]} 20. Nxc6 {[%emt 0:03:20]} Rxc6 {[%emt 0:00:11]} 21. Rxc6 {[%emt 0:00:19]} bxc6 {[%emt 0:00:01]} 22. Rc1 {[%emt 0:00:09]} Rb8 {[%emt 0:00:09]} 23. b4 {[%emt 0:01:35]} a5 {[%emt 0:00:03]} 24. bxa5 {[%emt 0:06:27]} Rb5 {[%emt 0:00:03]} 25. h4 {[%emt 0:06:14]} Rxa5 {[%emt 0:00:51]} 26. Rxc6 {[%emt 0:00:25]} Rxa3 {[%emt 0:00:11]} 27. Rc2 {[%emt 0:05:26]} Ra1+ {[%emt 0:01:15]} 28. Kh2 {[%emt 0:00:21]} Rd1 {[%emt 0:00:22]} 29. Bf3 {[%emt 0:00:45]} Kg7 {[%emt 0:02:58]} 30. Kg2 {[%emt 0:01:29]} Bf5 {[%emt 0:01:24]} 31. Rc3 {[%emt 0:02:42]} Be4 {[%emt 0:01:18]} 32. g4 {[%emt 0:02:55]} d4 {[%emt 0:01:05]} 33. Rc4 {[%emt 0:00:21]} Bxf3+ {[%emt 0:01:38]} 34. Kxf3 {[%emt 0:00:01]} d3 {[%emt 0:00:24]} 35. e3 {[%emt 0:00:02]} d2 {[%emt 0:00:37]} 36. Rd4 {[%emt 0:00:01]} Rh1 {[%emt 0:00:58]} 37. Rxd2 {[%emt 0:00:05]} Rxh4 {[%emt 0:00:11]} 38. Rd1 {[%emt 0:00:18]} h5 {[%emt 0:01:15]} 39. gxh5 {[%emt 0:00:11]} Rxh5 {[%emt 0:00:15]} 40. Rg1+ {[%emt 0:00:01]} Kf8 {[%emt 0:30:18]} 41. Kf4 {[%emt 0:00:38]} Ra5 {[%emt 0:00:00]} 42. e4 {[%emt 0:00:16]} Ra2 {[%emt 0:00:00]} 43. f3 {[%emt 0:00:06]} Ra5 {[%emt 0:00:00]} 44. Rd1 {[%emt 0:00:28]} Ke7 {[%emt 0:00:00]} 45. Rd5 {[%emt 0:00:25]} Ra3 {[%emt 0:00:00]} 46. Rb5 {[%emt 0:00:23]} Ke6 {[%emt 0:00:00]} 47. Rb7 {[%emt 0:00:27]} Ra5 {[%emt 0:00:00]} 48. Kg4 {[%emt 0:01:18]} Rg5+ {[%emt 0:00:00]} 49. Kf4 {[%emt 0:00:15]} Ra5 {[%emt 0:00:00]} 50. Kg4 {[%emt 0:00:14]} Rg5+ {[%emt 0:00:00]} 51. Kf4 {[%emt 0:00:04]} 1/2-1/2

[Event "NOR-ch Clubs 2017"]
[Site "Kristiansund"]
[Date "2017.10.22"]
[Round "6"]
[White "Moen, Andreas"]
[Black "Tofte, Sondre Waage"]
[Result "0-1"]
[ECO "C99"]
[WhiteElo "2331"]
[BlackElo "2169"]
[Annotator "NA"]
[PlyCount "72"]
[EventDate "2017.??.??"]
[EventType "team-tourn"]
[EventCountry "NOR"]
[SourceTitle "playchess.com"]
[Source "ChessBase"]
[SourceQuality "1"]
[TimeControl "40/5400:1800"]

1. e4 {[%emt 0:01:10]} e5 {[%emt 0:00:09]} 2. Nf3 {[%emt 0:00:37]} Nc6 {[%emt 0:00:06]} 3. Bb5 {[%emt 0:01:27]} a6 {[%emt 0:00:10]} 4. Ba4 {[%emt 0:00:58]} Nf6 {[%emt 0:00:12]} 5. O-O {[%emt 0:00:26]} Be7 {[%emt 0:00:11]} 6. Re1 {[%emt 0:00:21]} b5 {[%emt 0:00:11]} 7. Bb3 {[%emt 0:00:04]} d6 {[%emt 0:00:08]} 8. c3 {[%emt 0:01:17]} O-O {[%emt 0:00:10]} 9. h3 {[%emt 0:00:20]} Na5 {[%emt 0:00:20]} 10. Bc2 {[%emt 0:00:06]} c5 {[%emt 0:00:05]} 11. d4 {[%emt 0:01:30]} Qc7 {[%emt 0:01:00]} 12. Nbd2 {[%emt 0:03:55]} cxd4 {[%emt 0:00:24]} 13. cxd4 {[%emt 0:01:23]} Nc6 {[%emt 0:00:16]} 14. Nf1 {[%emt 0:06:58]} Nxd4 {[%emt 0:04:46]} 15. Nxd4 {[%emt 0:00:12]} exd4 {[%emt 0:00:04]} 16. Bg5 {[%emt 0:04:02]} h6 {[%emt 0:06:00]} 17. Bh4 {[%emt 0:01:54]} Bb7 {[%emt 0:01:37]} 18. Rc1 {[%emt 0:00:55]} Qb6 {[%emt 0:01:42]} 19. Ng3 {[%emt 0:07:07]} g6 {[%emt 0:21:44]} 20. Ne2 {[%emt 0:03:18]} d3 {[%emt 0:04:49]} 21. Bxd3 {[%emt 0:01:33]} Nxe4 {[%emt 0:01:07]} 22. Bxe4 {[%emt 0:07:51]} Bxh4 {[%emt 0:00:06]} 23. Nd4 {[%emt 0:03:05]} d5 {[%emt 0:05:38]} 24. Bb1 {[%emt 0:00:13]} Bf6 {[%emt 0:01:16]} 25. Nf3 {[%emt 0:01:14]} Bxb2 {[%emt 0:00:32]} 26. Rc2 {[%emt 0:00:21]} Bf6 {[%emt 0:00:24]} 27. Ne5 {[%emt 0:11:05]} Rad8 {[%emt 0:01:48]} 28. Rce2 {[%emt 0:03:52]} d4 {[%emt 0:06:27]} 29. Nxg6 {[%emt 0:04:24]} fxg6 {[%emt 0:01:34]} 30. Qd3 {[%emt 0:02:04]} Rd7 {[%emt 0:09:19]} 31. Re6 {[%emt 0:04:07]} Qc7 {[%emt 0:00:35]} 32. Qxg6+ {[%emt 0:03:37]} Rg7 {[%emt 0:00:07]} 33. Qxh6 {[%emt 0:00:11]} Rxg2+ {[%emt 0:00:20]} 34. Kf1 {[%emt 0:00:14]} Rxf2+ {[%emt 0:00:08]} 35. Kxf2 {[%emt 0:00:14]} Qh2+ {[%emt 0:00:10]} 36. Kf1 {[%emt 0:00:07]} Qg2# {[%emt 0:00:04]} 0-1